[Event "87th Tata Steel Challengers 2025"]
[Site "Wijk aan Zee"]
[Date "2025.01.22"]
[Round "5.1"]
[White "Suleymanli, Aydin"]
[Black "Yakubboev, Nodirbek"]
[Result "0-1"]
[Annotator "TA"]
[ECO "B51"]
[WhiteElo "2623"]
[BlackElo "2659"]
[PlyCount "142"]
[EventDate "2025.01.13"]
[EventType "tourn"]
[EventCountry "NED"]
[SourceTitle "playchess.com"]
[Source "ChessBase"]
[SourceQuality "1"]
[TimeControl "40/6000+30:20/3000+30:900+30"]

{[%evp 60,142,-63,-64,-65,-72,-58,-110,-96,-105,-62,-83,-108,-136,-137,-137,-126,-135,-143,-138,-134,-131,-135,-138,-133,-149,-119,-189,-31,-195,-197,-167,0,-34,-54,-35,-59,-59,-65,-62,-39,-41,-37,-51,-55,-50,-39,-87,-19,-8,-13,-133,-161,-154,-135,-183,-208,-251,-251,-294,-295,-353,-310,-347,-289,-782,-768,-911,-397,-1035,-685,-767,-767,-872,-839,-1758,-1012,-1133,-858,-837,-782,-4386,-3060,-2724,-2838]} 1. e4 {[%emt 0:00:06]} c5 {[%emt 0:02:42]} 2. Nf3 {[%emt 0:00:03]} d6 {[%emt 0:00:04]} 3. Bb5+ {[%emt 0:00:05]} Nd7 {[%emt 0:00:05]} 4. a4 {[%emt 0:00:05]} Ngf6 {[%emt 0:00:56]} 5. Nc3 {[%emt 0:00:16]} a6 {[%emt 0:01:05]} 6. Be2 {[%emt 0:00:16]} b6 {[%emt 0:01:51]} 7. d4 {[%emt 0:00:19]} cxd4 {[%emt 0:00:27]} 8. Qxd4 {[%emt 0:00:05]} Bb7 {[%emt 0:00:49]} 9. O-O {[%emt 0:00:24]} e6 {[%emt 0:00:20]} 10. Rd1 {[%emt 0:00:18]} Qc7 {[%emt 0:01:26]} 11. Bg5 {[%emt 0:00:09]} h6 {[%emt 0:02:30]} 12. Bh4 {[%emt 0:00:22]} Be7 {[%emt 0:00:05]} 13. Bg3 {[%emt 0:01:54]} e5 {[%emt 0:00:04]} 14. Qe3 {[%emt 0:00:09]} O-O {[%emt 0:00:43]} 15. Nd2 {[%emt 0:05:52]} Rfe8 {[%emt 0:34:31]} 16. Bc4 {[%emt 0:08:33]} Nc5 {[%emt 0:02:33]} 17. Qe2 {[%emt 0:06:38]} Ne6 {[%emt 0:03:54]} 18. Rac1 {[%emt 0:06:46]} Rec8 {[%emt 0:01:30]} 19. f3 {[%emt 0:18:43]} Nh5 {[%emt 0:03:40]} 20. Bf2 {[%emt 0:01:04]} Bg5 {[%emt 0:11:36]} 21. Ba2 {[%emt 0:06:08]} Nd4 {[%emt 0:04:07]} 22. Qf1 {[%emt 0:03:36]} b5 {[%emt 0:01:09]} 23. h4 {[%emt 0:07:07]} Bf4 {[%emt 0:03:08]} 24. Ne2 {[%emt 0:14:24]} Nxe2+ {[%emt 0:02:47]} 25. Qxe2 {[%emt 0:00:14]} bxa4 {[%emt 0:00:11]} 26. c4 {[%emt 0:00:57]} Bg3 {[%emt 0:07:02]} 27. Bxg3 {[%emt 0:09:20]} Nxg3 {[%emt 0:00:02]} 28. Qe3 {[%emt 0:00:25]} Qc5 {[%emt 0:08:03]} 29. Kf2 {[%emt 0:00:08]} Nh5 {[%emt 0:00:05]} 30. b4 {[%emt 0:00:28]} axb3 {[%emt 0:04:21]} (30... Qxb4 $2 $18) 31. Nxb3 {[%emt 0:06:37]} Qa3 {[%emt 0:02:03]} 32. Rc2 {[%emt 0:01:04]} Nf6 {[%emt 0:04:08]} 33. Qc1 {[%emt 0:06:01]} ({White should play} 33. Nc1 $15 Qxe3+ 34. Kxe3) 33... Qb4 $17 {[%emt 0:01:20]} 34. Qd2 {[%emt 0:02:08]} a5 {[%emt 0:04:17]} 35. Qxb4 {[%emt 0:02:16]} axb4 {[%emt 0:00:01]} 36. Rb2 {[%emt 0:02:00]} Bxe4 {[%emt 0:03:12]} 37. fxe4 {[%emt 0:00:05]} Nxe4+ {[%emt 0:00:05]} (37... Rxc4 38. Nd2 Rd4 39. Bb1 $14) 38. Kg1 {[%emt 0:02:31]} Nc3 $1 {[%emt 0:00:08]} (38... Rxc4 39. Nc1 Rcc8 40. Rxb4 $11) 39. Rdd2 {[%emt 0:00:20]} Rxc4 {[%emt 0:00:23]} 40. Nc1 {[%emt 0:01:00]} Re4 $1 {[%emt 0:00:59]} 41. Nd3 {[%emt 0:12:28]} b3 {[%emt 0:01:35]} 42. Bxb3 {[%emt 0:01:25]} Ra1+ {[%emt 0:00:02]} (42... Rxh4 43. Rbc2 Ra1+ 44. Nc1 $11) 43. Kh2 {[%emt 0:05:42]} (43. Kf2 $17 Rxh4 44. Ke3) 43... Rxh4+ $19 {[%emt 0:00:15]} 44. Kg3 {[%emt 0:00:03]} Rd4 {[%emt 0:00:38]} 45. Kh2 {[%emt 0:00:27]} Rh4+ {[%emt 0:16:00]} (45... g5 $19 {...Rh4+ would now be deadly.} 46. Nf2 Rh4+ 47. Nh3 (47. Kg3 $2 Re1 $19) 47... Ne4) 46. Kg3 $15 {[%emt 0:00:02]} g5 {[%emt 0:00:09]} 47. Rdc2 $1 {[%emt 0:01:27]} (47. Nf2 $2 Re1 48. Rd3 Ne2+ 49. Rxe2 Rxe2 $19) 47... Ne4+ {[%emt 0:01:35]} 48. Kf3 {[%emt 0:00:07]} Rf1+ {[%emt 0:05:30]} 49. Ke3 $1 {[%emt 0:02:16]} Ng3 {[%emt 0:01:19]} 50. Rf2 $1 {[%emt 0:06:55]} Nf5+ {[%emt 0:01:38]} 51. Ke2 {[%emt 0:02:39]} Rxf2+ {[%emt 0:01:47]} (51... Ng3+ 52. Kf3 Rxf2+ 53. Nxf2 $11) 52. Nxf2 {[%emt 0:00:15]} Kg7 {[%emt 0:03:24]} 53. Ba2 {[%emt 0:02:32]} (53. g4 $15 Nd4+ 54. Kf1) 53... Rf4 {[%emt 0:03:50]} ({Black should play} 53... Ra4 $1 $17 54. g4 Ng3+ 55. Kf3 Nf1) 54. Rb7 $11 {[%emt 0:01:28]} Ng3+ {[%emt 0:00:31]} 55. Ke1 {[%emt 0:01:42] [#]} (55. Ke3 $1 $11) 55... h5 $1 $17 {[%emt 0:03:15]} 56. Bd5 {[%emt 0:01:21]} g4 {[%emt 0:01:55]} 57. Rb3 {[%emt 0:10:58] [#]} (57. Ra7 $17 {might work better.}) 57... h4 $1 $19 {[%emt 0:04:18]} 58. Rb7 {[%emt 0:00:33]} e4 {[%emt 0:05:05]} 59. Rb4 {[%emt 0:01:35]} f5 {[%emt 0:00:50]} 60. Rb7+ {[%emt 0:00:17]} Kf6 {[%emt 0:00:35]} 61. Rf7+ {[%emt 0:16:02]} Ke5 {[%emt 0:15:48]} 62. Bb3 $2 {[%emt 0:01:36]} (62. Bc4) 62... d5 $19 {[%emt 0:02:46]} 63. Ra7 {[%emt 0:04:41]} d4 {[%emt 0:01:31]} (63... h3 $142 64. gxh3 Rf3) 64. Ra6 $2 {[%emt 0:00:26]} (64. Ra5+ Kf6 65. Ra6+ Ke7 (65... Kg5 $2 66. Bf7 $19) 66. Bc4) 64... d3 {[%emt 0:00:35]} 65. Re6+ {[%emt 0:00:31]} Kd4 {[%emt 0:00:01]} 66. Rd6+ {[%emt 0:00:28]} Kc3 {[%emt 0:01:09]} 67. Bf7 {[%emt 0:01:19]} h3 {[%emt 0:02:43]} 68. gxh3 {[%emt 0:00:07]} gxh3 {[%emt 0:00:02]} 69. Rc6+ {[%emt 0:01:03]} Kd4 {[%emt 0:00:08]} 70. Rc4+ {[%emt 0:00:30]} Ke3 {[%emt 0:00:16]} 71. Nd1+ {[%emt 0:00:25]} Kf3 {[%emt 0:00:01]} 0-1

[Event "87th Tata Steel Challengers 2025"]
[Site "Wijk aan Zee"]
[Date "2025.01.22"]
[Round "5.2"]
[White "Vaishali, Rameshbabu"]
[Black "Svane, Frederik"]
[Result "1/2-1/2"]
[Annotator "TA"]
[ECO "E11"]
[WhiteElo "2476"]
[BlackElo "2664"]
[PlyCount "90"]
[EventDate "2025.01.13"]
[EventType "tourn"]
[EventCountry "NED"]
[SourceTitle "playchess.com"]
[Source "ChessBase"]
[SourceQuality "1"]
[TimeControl "40/6000+30:20/3000+30:900+30"]

{[%evp 12,90,18,12,18,20,25,34,35,36,35,31,29,0,15,0,0,0,0,0,0,-8,-8,-21,-22,-16,-16,-14,-17,-17,-14,-14,-14,-17,-14,-23,-25,-28,-26,-46,-15,-15,-14,-14,-14,-17,0,-18,-15,-10,-8,-15,-8,-15,0,-37,0,-15,-8,-8,-8,-15,0,0,0,-4,-5,-67,-5,-4,-3,-92,-92,-92,-85,-85,-85,-147,-147,-147,-147]} 1. d4 {[%emt 0:00:20]} Nf6 {[%emt 0:00:31]} 2. c4 {[%emt 0:00:07]} e6 {[%emt 0:00:14]} 3. g3 {[%emt 0:00:13]} Bb4+ {[%emt 0:00:46]} 4. Bd2 {[%emt 0:00:07]} a5 {[%emt 0:00:15]} 5. Bg2 {[%emt 0:00:17]} d5 {[%emt 0:02:45]} 6. Nf3 {[%emt 0:00:07]} O-O {[%emt 0:00:07]} 7. Qc2 {[%emt 0:01:35]} Bd6 {[%emt 0:00:06]} 8. O-O {[%emt 0:11:07]} c6 {[%emt 0:00:06]} 9. Bg5 {[%emt 0:06:32]} Nbd7 {[%emt 0:00:16]} 10. Nbd2 {[%emt 0:01:55]} h6 {[%emt 0:00:11]} 11. Bxf6 {[%emt 0:00:39]} Nxf6 {[%emt 0:00:02]} 12. e4 {[%emt 0:07:05]} dxe4 {[%emt 0:00:29]} 13. Nxe4 {[%emt 0:00:03]} Nxe4 {[%emt 0:00:05]} 14. Qxe4 {[%emt 0:00:05]} c5 $1 {[%emt 0:00:03]} 15. Rad1 {[%emt 0:16:14] And now dxc5 would win.} Qc7 {[%emt 0:00:35]} 16. Qe2 {[%emt 0:08:55]} Bd7 {[%emt 0:24:37]} 17. Rfe1 {[%emt 0:28:24]} Rad8 {[%emt 0:07:23]} 18. Ne5 $1 {[%emt 0:07:06]} cxd4 {[%emt 0:04:02]} 19. Nxd7 {[%emt 0:01:47]} Rxd7 {[%emt 0:00:05]} 20. Rxd4 {[%emt 0:00:06]} Rfd8 {[%emt 0:00:11][%cal Od6g3] Hoping for ...Bxg3!.} 21. Red1 {[%emt 0:01:45]} Bc5 {[%emt 0:00:14]} 22. Rxd7 {[%emt 0:00:04]} Rxd7 {[%emt 0:00:04]} 23. Rxd7 {[%emt 0:01:48]} Qxd7 $11 {[%emt 0:00:02][%mdl 4096] Endgame KQB-KQB} 24. Be4 {[%emt 0:00:34]} b6 {[%emt 0:01:59]} 25. Qd3 {[%emt 0:01:18]} Bd4 {[%emt 0:00:09]} 26. Kg2 {[%emt 0:01:04]} Qd6 {[%emt 0:00:22]} 27. b3 {[%emt 0:00:59]} f5 {[%emt 0:01:15]} 28. Bf3 {[%emt 0:01:47]} Qc5 {[%emt 0:01:50]} 29. Qe2 {[%emt 0:00:37]} Kf7 {[%emt 0:00:07]} 30. h4 {[%emt 0:01:17]} Kf6 {[%emt 0:03:49]} 31. h5 {[%emt 0:01:29]} Qd6 {[%emt 0:05:23]} 32. Qd3 {[%emt 0:01:49]} Qe5 {[%emt 0:02:48]} 33. Qe2 {[%emt 0:00:41]} Qd6 {[%emt 0:00:39]} 34. Qd3 {[%emt 0:00:13]} Ke7 {[%emt 0:00:26]} 35. Qe2 {[%emt 0:02:42]} Bc5 {[%emt 0:00:14]} 36. g4 {[%emt 0:01:48]} Kf6 {[%emt 0:00:05]} 37. gxf5 {[%emt 0:00:37]} exf5 {[%emt 0:00:01]} (37... Qe5 38. fxe6 Qxe2 39. Bxe2 Kxe6 40. f4 Ba3) 38. Bd5 {[%emt 0:00:12]} Kg5 {[%emt 0:03:39]} (38... Qe5 {simplifies} 39. Qd2 Qd4 40. Qxd4+ Bxd4 41. f4 Ke7) 39. Qe6 {[%emt 0:03:26]} ({Better is} 39. Bf3 $11) 39... Qf4 {[%emt 0:02:40]} (39... Kxh5 40. Qxf5+ Kh4 41. Bf3) ({Black should try} 39... Qxe6 $15 40. Bxe6 Kxh5 41. Bxf5 Kg5) 40. Bf3 {[%emt 0:01:19]} Kh4 {[%emt 0:00:18]} 41. Qg6 {[%emt 0:19:45]} (41. Qe2 $11 {remains equal.}) 41... Qg5+ $17 {[%emt 0:00:06]} 42. Qxg5+ {[%emt 0:00:03]} hxg5 {[%emt 0:00:06]} 43. Be2 {[%emt 0:00:05]} g4 {[%emt 0:00:39][%cal Of5f4]} 44. f3 {[%emt 0:00:55]} (44. Bd3 $142) 44... g3 {[%emt 0:00:02][%cal Of5f4]} 45. Bd3 {[%emt 0:00:54]} f4 {[%emt 0:00:07]} ({Resist} 45... Kxh5 46. Kxg3 Kg5 47. f4+ Kf6 48. Bf1 $15) 1/2-1/2

[Event "87th Tata Steel Challengers 2025"]
[Site "Wijk aan Zee"]
[Date "2025.01.22"]
[Round "5.3"]
[White "Oro, Faustino"]
[Black "Pijpers, Arthur"]
[Result "1/2-1/2"]
[Annotator "TA"]
[ECO "D85"]
[WhiteElo "2447"]
[BlackElo "2474"]
[PlyCount "61"]
[EventDate "2025.01.13"]
[EventType "tourn"]
[EventCountry "NED"]
[SourceTitle "playchess.com"]
[Source "ChessBase"]
[SourceQuality "1"]
[TimeControl "40/6000+30:20/3000+30:900+30"]

{[%evp 19,61,11,23,8,1,0,0,0,0,3,4,0,0,0,0,0,0,0,0,0,0,-2,0,0,0,0,0,0,15,15,9,6,89,0,0,0,0,0,0,4,37,4,4,0]} 1. Nf3 {[%emt 0:00:03]} Nf6 {[%emt 0:00:04]} 2. c4 {[%emt 0:00:05]} c5 {[%emt 0:00:05]} 3. Nc3 {[%emt 0:00:54]} d5 {[%emt 0:00:06]} 4. cxd5 {[%emt 0:03:43]} Nxd5 {[%emt 0:00:04]} 5. d4 {[%emt 0:02:28]} Nxc3 {[%emt 0:02:09]} 6. bxc3 {[%emt 0:00:17]} g6 {[%emt 0:00:05]} 7. e4 {[%emt 0:03:32]} Bg7 {[%emt 0:00:10]} 8. Bb5+ {[%emt 0:06:08]} Nc6 {[%emt 0:00:42]} 9. O-O {[%emt 0:01:30]} cxd4 {[%emt 0:01:38]} 10. cxd4 {[%emt 0:05:08]} O-O {[%emt 0:00:20]} 11. Bxc6 {[%emt 0:01:08]} bxc6 {[%emt 0:00:04]} 12. Qc2 {[%emt 0:00:12][%cal Oc2c3]} Bg4 {[%emt 0:00:48]} 13. Ne5 {[%emt 0:01:41]} Qxd4 {[%emt 0:00:11]} 14. Bb2 {[%emt 0:00:08][%cal Bc1b2,Bb2e5,Be5d4,Bd4e3][%mdl 32]} Qb6 {[%emt 0:00:12]} 15. Rab1 {[%emt 0:00:05]} Bxe5 $1 {[%emt 0:00:05]} 16. Bxe5 {[%emt 0:00:01]} Qa5 {[%emt 0:00:15]} 17. Bd4 {[%emt 0:04:41]} Rfd8 {[%emt 0:33:38]} 18. Be3 {[%emt 0:02:15]} Be6 {[%emt 0:09:28]} 19. a4 {[%emt 0:09:18]} Qa6 {[%emt 0:02:31]} 20. Rfc1 {[%emt 0:02:49]} Rac8 {[%emt 0:06:44][%cal Oc6c5]} 21. Bc5 {[%emt 0:04:54]} Rd7 {[%emt 0:11:07]} 22. h3 {[%emt 0:01:48]} Rcd8 {[%emt 0:08:45]} 23. Be3 {[%emt 0:02:06]} c5 {[%emt 0:11:31]} 24. Qxc5 {[%emt 0:02:15]} Qxa4 {[%emt 0:01:47]} 25. Qe5 {[%emt 0:00:38] Repels Qxe4} Qa6 {[%emt 0:05:22] [#] Black is weak on the dark squares} (25... Rd1+ $11 {keeps the balance.} 26. Kh2 Rxc1 27. Rxc1 a6) 26. Ra1 {[%emt 0:08:45] White is more active.} (26. Rb6 $1 $16 {White wants to mate with Bh6.} Qxb6 (26... axb6 27. Bh6 $15) 27. Bxb6 axb6 28. Kh2) 26... Qd6 $11 {[%emt 0:01:16]} (26... Qd3 {keeps more tension.} 27. Bh6 Qd4 28. Qxd4 Rxd4 29. Rxa7 Rxe4 30. Rxe7 Re5) 27. Qxd6 {[%emt 0:00:38]} Rxd6 {[%emt 0:00:07]} 28. Rxa7 {[%emt 0:00:06]} Rd1+ {[%emt 0:00:20]} 29. Rxd1 {[%emt 0:00:01]} Rxd1+ {[%emt 0:00:05]} 30. Kh2 {[%emt 0:00:04][%cal Oe3h6]} Rd7 {[%emt 0:00:06]} 31. Rxd7 {[%emt 0:00:07]} 1/2-1/2

[Event "87th Tata Steel Challengers 2025"]
[Site "Wijk aan Zee"]
[Date "2025.01.22"]
[Round "5.4"]
[White "Lu, Miaoyi"]
[Black "Bok, Benjamin"]
[Result "0-1"]
[Annotator "TA"]
[ECO "B67"]
[WhiteElo "2429"]
[BlackElo "2583"]
[PlyCount "68"]
[EventDate "2025.01.13"]
[EventType "tourn"]
[EventCountry "NED"]
[SourceTitle "playchess.com"]
[Source "ChessBase"]
[SourceQuality "1"]
[TimeControl "40/6000+30:20/3000+30:900+30"]

{[%evp 16,67,46,19,26,20,37,25,36,20,21,0,0,0,0,-18,0,0,0,0,8,0,32,41,58,50,46,53,60,51,34,49,63,-26,-38,-36,0,0,0,-333,-333,-339,-330,-322,-339,-332,-320,-328,-329,-750,-748,-1742,-1687,-29999]} 1. e4 {[%emt 0:00:01]} c5 {[%emt 0:00:05]} 2. Nf3 {[%emt 0:00:05]} d6 {[%emt 0:00:05]} 3. d4 {[%emt 0:00:05]} cxd4 {[%emt 0:00:05]} 4. Nxd4 {[%emt 0:00:03]} Nf6 {[%emt 0:00:06]} 5. Nc3 {[%emt 0:00:04]} Nc6 {[%emt 0:00:05]} 6. Bg5 {[%emt 0:00:18]} e6 {[%emt 0:00:05]} 7. Qd2 {[%emt 0:00:07]} a6 {[%emt 0:00:11]} 8. O-O-O {[%emt 0:00:17]} Bd7 {[%emt 0:00:10]} 9. Kb1 {[%emt 0:00:54]} Nxd4 {[%emt 0:02:57]} 10. Qxd4 {[%emt 0:00:02]} Be7 {[%emt 0:00:09]} 11. f3 {[%emt 0:00:15]} Qc7 {[%emt 0:01:17]} 12. Qd2 {[%emt 0:01:04]} b5 {[%emt 0:02:16]} 13. Bd3 {[%emt 0:04:42]} b4 {[%emt 0:08:00]} 14. Ne2 {[%emt 0:00:14]} a5 {[%emt 0:00:29]} 15. c4 {[%emt 0:09:23]} bxc3 {[%emt 0:30:12]} 16. Nxc3 {[%emt 0:00:37]} Qb7 {[%emt 0:02:12] Wards off Bb5} 17. a4 {[%emt 0:31:26]} O-O {[%emt 0:02:38]} 18. Nb5 {[%emt 0:04:03]} d5 {[%emt 0:16:32]} 19. Rc1 {[%emt 0:17:30]} Qb8 {[%emt 0:06:13] [#]} (19... dxe4 $2 20. Bxf6 e3 (20... Bxf6 $2 21. Bxe4 Qb6 22. Qxd7 $18) 21. Bxh7+ (21. Qxe3 Bxf6 22. Rc7 Qd5 $18) (21. Rc7 exd2 22. Rxb7 Bxb5 $17) 21... Kh8 22. Qxe3 Bxf6 23. Be4 $18) 20. e5 $1 {[%emt 0:12:09]} Bxb5 {[%emt 0:01:08]} 21. axb5 {[%emt 0:00:44]} Bb4 $1 {[%emt 0:04:04]} (21... Qxe5 $2 22. Bf4 Qh5 23. h4 $18) 22. Qe3 $1 {[%emt 0:05:15]} Nd7 {[%emt 0:00:17]} 23. f4 {[%emt 0:00:05]} Qa7 {[%emt 0:09:21]} 24. Qh3 {[%emt 0:08:42]} ({White should play} 24. Qxa7 $14 Rxa7 25. Rhd1) 24... g6 $1 $36 {[%emt 0:01:02][%mdl 2048] Black is pushing.} 25. Rc6 {[%emt 0:04:02][%cal Ob5b6]} a4 {[%emt 0:07:31]} 26. b6 {[%emt 0:07:08]} Qa5 {[%emt 0:04:15][%cal Oa4a3]} 27. b7 $2 {[%emt 0:01:53][%mdl 8192] [#]} (27. Bxg6 $11 {and White is okay.} hxg6 28. f5 exf5 29. Qh6) 27... a3 $1 $19 {[%emt 0:11:56] Hoping for ...axb2.} (27... Ra7 $2 28. Qh6 f5 (28... Rxb7 29. Bf6 Nxf6 30. exf6 Kh8 31. Qg7#) 29. exf6 (29. Rxe6 Rxb7 $11) 29... Nxf6 30. Qxf8+ (30. Rxe6 Rxb7 31. Bxf6 Bc3 $18) 30... Bxf8 31. b8=Q $18 (31. b8=R $2 {is the wrong capture.} Nd7 $19)) 28. bxa8=Q {[%emt 0:00:27]} (28. bxa8=N Rxa8 29. bxa3 Bxa3 $19) 28... Rxa8 {[%emt 0:00:02]} 29. Ra6 {[%emt 0:02:36]} Rxa6 {[%emt 0:00:07]} 30. Bxa6 {[%emt 0:00:06][%cal Oh3b3]} axb2 {[%emt 0:00:37]} (30... Qxa6 31. bxa3 Bxa3 32. Qc3 $11) 31. Kxb2 {[%emt 0:00:28]} ({Avoid the trap} 31. Qb3 $2 Qa1+ (31... Qxa6 $2 32. Qxb2 Qd3+ 33. Qc2 $19) 32. Kc2 Qxh1 33. Qxb2 Bf8 $19 (33... Qxg2+ $2 34. Kb1 $19)) 31... Qxa6 {[%emt 0:00:05]} 32. Qb3 $2 {[%emt 0:01:02]} (32. Rc1) 32... Nc5 {[%emt 0:00:32]} (32... Qe2+ 33. Qc2 Qb5 (33... Ba3+ 34. Kb1 $11) 34. Rd1 $19) 33. Qc2 {[%emt 0:00:25]} d4 {[%emt 0:01:23] ( -> ...Bc3+)} 34. Rb1 {[%emt 0:00:44]} Qa3# {[%emt 0:00:06]} 0-1

[Event "87th Tata Steel Challengers 2025"]
[Site "Wijk aan Zee"]
[Date "2025.01.22"]
[Round "5.5"]
[White "L'Ami, Erwin"]
[Black "Deshmukh, Divya"]
[Result "1-0"]
[Annotator "TA"]
[ECO "E05"]
[WhiteElo "2614"]
[BlackElo "2490"]
[PlyCount "105"]
[EventDate "2025.01.13"]
[EventType "tourn"]
[EventCountry "NED"]
[TimeControl "40/6000+30:20/3000+30:900+30"]

{[%evp 18,105,16,16,16,15,12,16,14,10,32,29,49,40,28,25,48,26,18,35,57,33,63,62,98,104,108,68,104,93,137,120,143,125,277,235,217,184,202,186,198,197,178,154,155,150,151,119,155,150,496,472,721,383,744,364,326,340,737,230,209,172,236,219,233,228,289,273,279,275,291,287,347,315,333,333,351,343,368,372,405,410,507,466,663,690,759,716,808,801]} 1. Nf3 {[%emt 0:00:04]} d5 {[%emt 0:03:33]} 2. c4 {[%emt 0:00:18]} e6 {[%emt 0:01:12]} 3. g3 {[%emt 0:00:30]} Nf6 {[%emt 0:00:13]} 4. Bg2 {[%emt 0:00:17]} Be7 {[%emt 0:00:11]} 5. O-O {[%emt 0:01:29]} O-O {[%emt 0:00:58]} 6. d4 {[%emt 0:00:38]} dxc4 {[%emt 0:01:20]} 7. Qa4 {[%emt 0:00:13]} a6 {[%emt 0:02:42]} 8. Qxc4 {[%emt 0:00:37]} b5 {[%emt 0:09:26]} 9. Qc2 {[%emt 0:00:51]} Bb7 {[%emt 0:00:02]} 10. Bd2 {[%emt 0:00:35]} Ra7 {[%emt 0:06:06] E05: Open Catalan: 5 Nf3 Be7.} 11. Rc1 {[%emt 0:13:46]} Be4 {[%emt 0:12:39]} 12. Qb3 {[%emt 0:00:45]} Bd5 {[%emt 0:03:22] The position is equal.} 13. Qe3 {[%emt 0:15:24]} Ng4 {[%emt 0:17:23]} 14. Qd3 {[%emt 0:03:43]} Bc4 {[%emt 0:01:50]} 15. Rxc4 {[%emt 0:01:09]} bxc4 {[%emt 0:00:17]} 16. Qxc4 {[%emt 0:00:09][%cal Od4d5]} Nf6 {[%emt 0:05:07][%cal Oc7c5]} 17. Nc3 {[%emt 0:05:50][%mdl 1024] White has compensation.} Nbd7 {[%emt 0:02:02]} 18. b4 {[%emt 0:04:12][%cal Bb2b4,Bb4b5][%mdl 32]} Qb8 $146 {[%emt 0:10:41]} (18... c6 19. Na4 Qb8 20. Nc5 Qb5 21. Rc1 Rc8 22. e3 Qxc4 23. Rxc4 Bd8 24. Nb3 Ne4 {½-½ Sakaev,K (2649)-Karjakin,S (2732) RUS-chT Dagomys 2008 (7)}) 19. a3 {[%emt 0:02:12]} a5 {[%emt 0:00:34]} 20. b5 {[%emt 0:02:54]} Bd6 {[%emt 0:03:45][%cal Oa5a4]} 21. e4 {[%emt 0:05:00]} e5 {[%emt 0:00:27][%cal Oa5a4]} 22. h3 {[%emt 0:02:08]} Rb7 {[%emt 0:04:52]} 23. Be3 {[%emt 0:02:20]} Re8 {[%emt 0:04:51]} 24. a4 {[%emt 0:07:13]} exd4 {[%emt 0:02:59] White has space advantage and is better} 25. Bxd4 {[%emt 0:06:31]} Nxe4 $2 {[%emt 0:08:17]} (25... h6 $16) 26. Nxe4 {[%emt 0:04:18]} Rxe4 {[%emt 0:00:02]} 27. Qd5 {[%emt 0:03:13]} Re7 {[%emt 0:05:49][%cal Ob7b6]} 28. Nh4 $1 {[%emt 0:01:22]} Rb6 {[%emt 0:01:26][%cal Ob8e8]} 29. Nf5 $40 {[%emt 0:01:45][%mdl 128] Black is in trouble.} Re6 {[%emt 0:00:15][%cal Od6e5]} 30. Nxg7 {[%emt 0:07:42] Black is weak on the light squares} Re5 {[%emt 0:00:13]} 31. Bxe5 {[%emt 0:01:39]} Bxe5 {[%emt 0:00:03] [#]} 32. Qxd7 $1 {[%emt 0:00:39][%cal Og2d5]} Bxa1 {[%emt 0:00:03]} (32... Rd6 33. Qe8+) 33. Nf5 {[%emt 0:00:20] Black must now prevent Bc6. White is much more active.} Bf6 $2 {[%emt 0:01:50]} (33... Rf6 $16 34. Bd5 Qf8) 34. Bd5 {[%emt 0:02:30]} Qd8 {[%emt 0:00:06]} (34... Qf8 $142 35. Nh6+ (35. Qxc7 Bd8 $18) 35... Kg7 (35... Qxh6 36. Qxf7+ Kh8 37. Qg8#)) 35. Qxf7+ $18 {[%emt 0:01:20]} Kh8 {[%emt 0:00:02]} 36. Be4 {[%emt 0:01:38]} (36. Bc6 $142 Be5 37. Ne7 Rxc6 38. Nxc6 Qd1+ 39. Kh2) 36... Rb8 {[%emt 0:00:59]} 37. Kg2 {[%emt 0:01:09]} Rb6 $2 {[%emt 0:02:04] [#]} (37... Qf8 38. Qxc7 Re8) 38. Nd4 $2 {[%emt 0:05:06]} Qg8 {[%emt 0:01:16] [#]} 39. Qxg8+ {[%emt 0:00:39]} (39. Qxc7 $2 {loses.} Bxd4 40. Qd7 Be5 41. Bxh7 Qe6 (41... Qxh7 42. Qd8+ Qg8 43. Qxb6 $14) 42. Qxe6 Rxe6 $19) (39. Qd7 Rd6 40. Qxc7 Rxd4 $19) 39... Kxg8 {[%emt 0:00:02][%mdl 4096] Endgame KRB-KBN} 40. Nc6 {[%emt 0:00:11]} Bc3 {[%emt 0:00:04]} 41. Kf3 {[%emt 0:55:16]} Kg7 {[%emt 0:07:04]} 42. Ke2 {[%emt 0:00:00]} h6 {[%emt 0:00:48]} 43. f4 {[%emt 0:00:00]} Kf7 {[%emt 0:01:18]} 44. Bd5+ {[%emt 0:00:00]} Kg6 {[%emt 0:00:37]} 45. g4 {[%emt 0:00:00]} Bf6 {[%emt 0:00:19]} 46. Kf3 {[%emt 0:00:00]} ({Resist} 46. Nxa5 Rd6) 46... Bh4 {[%emt 0:15:55]} 47. Nxa5 {[%emt 0:00:00]} Rd6 {[%emt 0:03:03]} 48. Ke4 {[%emt 0:00:00]} Rd8 {[%emt 0:04:50]} 49. Nc6 {[%emt 0:00:00]} Re8+ {[%emt 0:00:41]} 50. Ne5+ {[%emt 0:00:00] White is clearly winning.} Kf6 {[%emt 0:00:31]} (50... Kg7 $142 51. a5 Bf2) 51. a5 {[%emt 0:00:00][%cal Ba4a5,Ba5a6][%mdl 32]} Bf2 {[%emt 0:00:51]} 52. a6 {[%emt 0:00:00]} Ke7 {[%emt 0:00:39] [#]} 53. h4 $1 {[%emt 0:00:00] Weighted Error Value: White=0.32/Black=0.50  Loses game:     	---       	Black=1      Mistake:       	White=1     	Black=4      Inaccurate:     	White=1     	Black=7      OK:         	White=23    	Black=9      Best:        	White=3     	Black=2} 1-0